fUST/lending_fUST_20251227
["ID","MTS","AMOUNT","RATE_DAILY","PERIOD"]
[399865415,1766771438392,-151.0,0.00020963,2]
[399865416,1766771438403,-151.0,0.00020963,2]
[399865417,1766771438414,-202.8883968,0.00020963,2]
[399865418,1766771438424,-180.867,0.0002101,2]
[399865419,1766771438435,-477.92493248,0.00021107,2]
[399865420,1766771438445,-192.38294043,0.00021153,2]
[399865429,1766771439955,-132.54279257,0.00021153,2]
[399865430,1766771439966,-172.87,0.00021475,3]
[399865431,1766771439976,-319.33720743,0.00021552,2]
[399865516,1766771445912,-302.0,0.00018259,2]
[399865517,1766771445924,-114.0,0.00018259,2]
[399865518,1766771445935,-416.0,0.00018259,2]
[399865519,1766771445944,-416.0,0.00021259,2]
[399865520,1766771445954,-416.0,0.00021259,2]
[399865521,1766771445965,-421.72,0.00021552,2]
[399865522,1766771445977,-81.94279257,0.00021552,2]
[399865523,1766771445987,-151.0,0.000216,3]
[399865524,1766771445996,-1359.08606735,0.00021608,2]
[399865525,1766771446016,-51.83810247,0.00021608,2]
[399865526,1766771446026,-399.46838134,0.00021674,2]
[399865527,1766771446036,-500.0,0.00021674,2]
[399865528,1766771446046,-500.0,0.00021674,2]
[399865529,1766771446056,-500.0,0.00021674,2]
[399865530,1766771446066,-500.0,0.00021674,2]
[399865531,1766771446076,-382.41460898,0.00021674,2]
[399865532,1766771499078,150.0,0.00012585,2]
[399865534,1766771553820,210.45016882,7.961e-05,2]
[399865535,1766771554617,210.45016882,0.00012257,2]
[399865546,1766771666391,13334.0,0.0003013,120]
[399865549,1766771761771,446.623533,0.00013699,2]
[399865551,1766772428096,-198.22581175,0.00015543,2]
[399865552,1766772429081,-2822.2794473,0.00015543,2]
[399865553,1766772439097,-526.88199564,0.00015543,2]
[399865554,1766772481525,210.59042218,7.961e-05,2]
[399865555,1766772482182,210.59042218,0.0001421,2]
[399865562,1766772555101,-2452.61274531,0.00015543,2]
[399865563,1766772555128,-311.07149563,0.00015622,2]
[399865564,1766772555151,-471.43,0.000157,2]
[399865565,1766772555176,-650.0,0.0001587,2]
[399865566,1766772555199,-500.0,0.00016084,2]
[399865567,1766772555224,-162.92173802,0.00016086,2]
[399865568,1766772555249,-300.0,0.00016181,2]
[399865569,1766772555276,-1200.0,0.00016182,2]
[399865570,1766772555302,-500.0,0.00016182,2]
[399865571,1766772555326,-500.0,0.00016182,2]
[399865572,1766772555350,-500.0,0.00016182,2]
[399865573,1766772555375,-500.0,0.00016182,2]
[399865574,1766772555399,-500.0,0.00016182,2]
[399865575,1766772555424,-500.0,0.00016182,2]
[399865576,1766772555449,-500.0,0.00016182,2]
[399865577,1766772555472,-511.26680279,0.00016182,2]
[399865578,1766772555496,-500.0,0.00016182,2]
[399865579,1766772555521,-500.0,0.00016182,2]
[399865580,1766772555545,-500.0,0.00016182,2]
[399865581,1766772555569,-500.0,0.00016182,2]
[399865582,1766772555593,-500.0,0.00016182,2]
[399865583,1766772555619,-500.0,0.00016182,2]
[399865584,1766772555642,-500.0,0.00016182,2]
[399865585,1766772555664,-160.7310051,0.00016182,2]
[399865586,1766772555687,-326.5054916,0.00016182,2]
[399865587,1766772555709,-501.68674875,0.00016182,2]
[399865588,1766772556106,-500.0,0.00016182,2]
[399865589,1766772556130,-500.0,0.00016182,2]
[399865590,1766772556153,-500.0,0.00016182,2]
[399865591,1766772556175,-500.0,0.00016182,2]
[399865592,1766772556197,-421.99387148,0.00016182,2]
[399865593,1766772556218,-500.0,0.00016182,2]
[399865594,1766772556241,-280.78649708,0.00016182,2]
[399865595,1766772556264,-778.21800656,0.00016182,2]
[399865596,1766772556286,-778.21800656,0.00016182,2]
[399865597,1766772556307,-778.21800656,0.00016182,2]
[399865598,1766772556329,-778.21800656,0.00016182,2]
[399865599,1766772556350,-778.21800656,0.00016182,2]
[399865600,1766772556371,-778.21800656,0.00016182,2]
[399865601,1766772556398,-778.21800656,0.00016182,2]
[399865602,1766772556421,-778.21800656,0.00016182,2]
[399865603,1766772556443,-778.21800656,0.00016182,2]
[399865604,1766772556466,-778.21800656,0.00016182,2]
[399865605,1766772556488,-778.21800656,0.00016182,2]
[399865606,1766772556512,-778.21800656,0.00016182,2]
[399865607,1766772556534,-50000.0,0.00016183,2]
[399865608,1766772556558,-300.0,0.00016186,2]
[399865609,1766772556582,-300.0,0.00016186,2]
[399865610,1766772556606,-300.0,0.00016186,2]
[399865611,1766772556629,-300.0,0.00016186,2]
[399865612,1766772556652,-300.0,0.00016186,2]
[399865613,1766772556675,-300.0,0.00016186,2]
[399865614,1766772556698,-300.0,0.00016186,2]
[399865615,1766772556720,-300.0,0.00016186,2]
[399865616,1766772556743,-300.0,0.00016186,2]
[399865617,1766772556765,-300.0,0.00016186,2]
[399865618,1766772556788,-300.0,0.00016186,2]
[399865619,1766772556811,-300.0,0.00016186,2]
[399865620,1766772556832,-300.0,0.00016186,2]
[399865621,1766772556855,-300.0,0.00016186,2]
[399865622,1766772556877,-300.0,0.00016186,2]
[399865624,1766772556900,-999.0,0.00016192,2]
[399865626,1766772556921,-207.25040764,0.00016416,2]
[399865627,1766772556949,-600.0,0.00016509,2]
[399865628,1766772556975,-151.0,0.00017168,2]
[399865629,1766772557005,-151.0,0.00017168,2]
[399865630,1766772557029,-151.0,0.00017168,2]
[399865631,1766772557053,-151.0,0.00017168,2]
[399865632,1766772557075,-151.0,0.00017168,2]
[399865633,1766772557098,-151.0,0.00017168,2]
[399865634,1766772557120,-151.0,0.00017168,2]
[399865635,1766772557142,-151.74393422,0.00017168,2]
[399865636,1766772557165,-151.0,0.00017168,2]
[399865637,1766772557186,-151.0,0.00017168,2]
[399865638,1766772557207,-151.0,0.00017168,2]
[399865639,1766772557229,-151.0,0.00017168,2]
[399865640,1766772557251,-151.0,0.00017168,2]
[399865641,1766772557275,-151.0,0.00017168,2]
[399865642,1766772557296,-151.0,0.00017168,2]
[399865643,1766772557317,-151.0,0.00017168,2]
[399865644,1766772557338,-151.0,0.00017168,2]
[399865645,1766772557362,-151.0,0.00017168,2]
[399865646,1766772557383,-151.0,0.00017168,2]
[399865647,1766772557404,-151.0,0.00017168,2]
[399865648,1766772557425,-156.23124306,0.00017168,2]
[399865649,1766772557447,-1041.66666667,0.00017221,2]
[399865650,1766772557469,-367.06436484,0.00017622,2]
[399865651,1766772557491,-420.0,0.00017688,2]
[399865652,1766772557512,-162.92173802,0.00018075,2]
[399865653,1766772557536,-720.0,0.0001816,2]
[399865654,1766772557557,-1363.0,0.0001833,2]
[399865655,1766772557578,-633.0,0.0001833,2]
[399865656,1766772557599,-2161.0,0.0001833,2]
[399865657,1766772557619,-416.0,0.0001833,2]
[399865658,1766772557640,-416.0,0.0001833,2]
[399865659,1766772557662,-543.96577297,0.00018747,2]
[399865660,1766772557684,-1808.2093343,0.00019178,2]
[399865661,1766772557707,-587.0,0.00019335,2]
[399865662,1766772557729,-179.61,0.000194,2]
[399865663,1766772557751,-194.67,0.000194,2]
[399865664,1766772557772,-423.05723406,0.00019622,2]
[399865665,1766772557792,-903.628965,0.00019645,2]
[399865666,1766772557817,-864.0,0.00019976,2]
[399865667,1766772557839,-150.0,0.0002,10]
[399865668,1766772557860,-151.51515152,0.0002,2]
[399865669,1766772557882,-162.92173802,0.00020064,2]
[399865670,1766772557903,-446.623533,0.00020187,2]
[399865671,1766772557923,-82953.9648924,0.00020315,2]
[399865672,1766772558147,-11902.06410756,0.00020315,2]
[399865673,1766772558168,-344.572237,0.00020315,2]
[399865674,1766772558189,-344.572237,0.00020315,2]
[399865675,1766772558210,-344.572237,0.00020315,2]
[399865676,1766772558231,-151.0,0.00020315,2]
[399865677,1766772558252,-344.572237,0.00020315,2]
[399865678,1766772558274,-151.0,0.00020315,2]
[399865679,1766772558295,-151.0,0.00020315,2]
[399865680,1766772558315,-151.0,0.00020315,2]
[399865681,1766772558336,-235.0,0.00020315,2]
[399865682,1766772558356,-48073.2502177,0.00020317,2]
[399865683,1766772558378,-184.396447,0.00020317,2]
[399865684,1766772558400,-184.396447,0.00020317,2]
[399865685,1766772558421,-184.396447,0.00020317,2]
[399865686,1766772558443,-184.396447,0.00020317,2]
[399865687,1766772558466,-344.572237,0.00020317,2]
[399865688,1766772558487,-344.572237,0.00020317,2]
[399865689,1766772558508,-344.572237,0.00020317,2]
[399865690,1766772558528,-344.572237,0.00020317,2]
[399865691,1766772558549,-151.0,0.00020317,2]
[399865692,1766772558571,-151.0,0.00020317,2]
[399865693,1766772558591,-151.0,0.00020317,2]
[399865694,1766772558613,-210.8010126,0.00020459,2]
[399865695,1766772558634,-250.0,0.00020776,2]
[399865696,1766772558656,-302.24093681,0.00020963,2]
[399865697,1766772558676,-345.4182135,0.00020963,2]
[399865698,1766772558697,-539.7159586,0.00020963,2]
[399865699,1766772558717,-208.67130806,0.00020963,2]
[399865700,1766772558739,-150.0,0.00021,2]
[399865701,1766772558760,-180.867,0.0002106,2]
[399865702,1766772558782,-823.0,0.00021136,2]
[399865706,1766772561194,398.8404635,0.00020225,2]
[399865707,1766772564075,7138.13730804,0.00016086,2]
[399865708,1766772569302,2846.60594963,0.00018535,2]
[399865754,1766772632095,-203.67470913,0.00016084,2]
[399865756,1766772632105,-1027.72086617,0.00018535,2]
[399865759,1766772632129,-3263.81049224,0.00018535,2]
[399865760,1766772632140,-206.743342,0.00020317,2]
[399865761,1766772632150,-206.743342,0.00020317,2]
[399865762,1766772632160,-206.743342,0.00020317,2]
[399865763,1766772632171,-206.743342,0.00020317,2]
[399865764,1766772632181,-300.0,0.00020983,2]
[399865765,1766772632192,-7138.13730804,0.00020984,2]
[399865766,1766772632202,-375.23274616,0.00021318,2]
[399865767,1766772632213,-579.396,0.0002133,2]
[399865768,1766772632223,-153.78674401,0.00021405,2]
[399865769,1766772632233,-479.05010327,0.00021622,2]
[399865770,1766772632243,-153.0,0.00021674,2]
[399865771,1766772632254,-153.0,0.00021674,2]
[399865772,1766772632264,-4950.11,0.000218,2]
[399865773,1766772632274,-500.0,0.00021856,7]
[399865774,1766772632284,-150.0,0.00021918,2]
[399865775,1766772632294,-162.92173802,0.00022053,2]
[399865776,1766772632304,-300.0,0.00022235,10]
[399865777,1766772632314,-300.0,0.00022235,10]
[399865778,1766772632323,-300.0,0.00022235,10]
[399865779,1766772632335,-300.0,0.00022235,10]
[399865780,1766772632345,-300.0,0.00022235,10]
[399865781,1766772632355,-300.0,0.00022235,10]
[399865782,1766772632366,-300.0,0.00022235,10]
[399865783,1766772632377,-300.0,0.00022235,10]
[399865784,1766772632387,-300.0,0.00022235,10]
[399865785,1766772632398,-300.0,0.00022235,10]
[399865787,1766772632409,-300.0,0.00022235,10]
[399865789,1766772632419,-300.0,0.00022235,10]
[399865791,1766772632434,-300.0,0.00022235,10]
[399865793,1766772632445,-300.0,0.00022235,10]
[399865795,1766772632454,-300.0,0.00022235,10]
[399865797,1766772632465,-903.628965,0.00022303,2]
[399865799,1766772632475,-151.0,0.000224,9]
[399865801,1766772632486,-300.0,0.00022466,2]
[399865803,1766772632496,-500.0,0.00022551,2]
[399865805,1766772632505,-500.0,0.00022551,2]
[399865807,1766772632515,-500.0,0.00022552,2]
[399865809,1766772632526,-500.0,0.00022552,2]
[399865811,1766772632535,-500.0,0.00022552,2]
[399865812,1766772632546,-500.0,0.00022552,2]
[399865814,1766772632556,-500.0,0.00022552,2]
[399865816,1766772632566,-500.0,0.00022552,2]
[399865818,1766772632576,-420.0,0.00022826,2]
[399865820,1766772632587,-600.0,0.00023002,10]
[399865822,1766772632597,-600.0,0.00023014,2]
[399865823,1766772632607,-1845.74306772,0.0002303,2]
[399865825,1766772632617,-151.0,0.000231,5]
[399865827,1766772632627,-1024.0,0.000231,2]
[399865828,1766772632638,-5000.0,0.00023418,2]
[399865830,1766772632648,-500.0,0.00023432,2]
[399865831,1766772632658,-500.0,0.00023432,2]
[399865832,1766772632668,-500.0,0.00023432,2]
[399865833,1766772632679,-357.88676195,0.00023432,2]
[399865834,1766772632689,-500.0,0.00023432,2]
[399865835,1766772632699,-500.0,0.00023432,2]
[399865836,1766772632709,-500.0,0.00023432,2]
[399865837,1766772632719,-500.0,0.00023432,2]
[399865838,1766772632729,-500.0,0.00023432,2]
[399865839,1766772632739,-7138.13730804,0.00023433,2]
[399865840,1766772632749,-337.59778456,0.00023464,7]
[399865841,1766772632758,-1281.88099927,0.000235,2]
[399865842,1766772633045,-22.02509019,0.00023432,2]
[399865848,1766772638025,-477.97490981,0.00023432,2]
[399865849,1766772638037,-500.0,0.00023432,2]
[399865850,1766772638048,-500.0,0.00023432,2]
[399865851,1766772638058,-500.0,0.00023432,2]
[399865852,1766772638068,-500.0,0.00023432,2]
[399865853,1766772638079,-500.0,0.00023432,2]
[399865854,1766772638088,-500.0,0.00023432,2]
[399865855,1766772638098,-417.22503389,0.00023432,2]
[399865865,1766772640192,-82.77496611,0.00023432,2]
[399865866,1766772640203,-230.81163915,0.000235,2]
[399865867,1766772640266,-58.54244396,0.000235,2]
[399865868,1766772640279,-458.9508,0.000235,2]
[399865869,1766772640297,-15256.94912138,0.000235,2]
[399865878,1766772645144,-416.0,0.0001904,2]
[399865879,1766772645155,-416.0,0.0002204,2]
[399865880,1766772645166,-1108.55086211,0.000235,2]
[399865881,1766772645179,-2439.32849533,0.000235,2]
[399865882,1766772645203,-1504.3502,0.000235,2]
[399865883,1766772646157,-14940.6242366,0.000235,2]
[399865884,1766772646268,-2265.9225486,0.000235,2]
[399865885,1766772646280,-3854.12741463,0.000235,2]
[399865904,1766773547134,-1688.31552074,0.00018475,2]
[399865905,1766773547155,-286.54905618,0.00018756,2]
[399865906,1766773547176,-701.0,0.0001885,2]
[399865907,1766773547197,-338.1278863,0.00020756,2]
[399865908,1766773547222,-196.50612205,0.00021334,2]
[399865909,1766773547244,-162.53000055,0.000215,2]
[399865914,1766773650309,-416.0,0.0001904,2]
[399865915,1766773650336,-300.0,0.00021499,2]
[399865916,1766773650358,-4043.59446191,0.000215,2]
[399865922,1766773823804,200.0,0.00016124,2]
[399865965,1766773832875,-702.68,0.00021,7]
[399865966,1766773832886,-178.47588955,0.00021143,2]
[399865971,1766773838167,-98.76242231,0.00021143,2]
[399865972,1766773838178,-673.28007358,0.00021285,2]
[399865973,1766773838190,-1023.73570649,0.00021285,2]
[399865974,1766773838203,-526.80861021,0.00021285,2]
[399865975,1766773838215,-2420.1853518,0.00021285,2]
[399865976,1766773838227,-355.81467659,0.00021285,2]
[399865977,1766773838239,-0.17558133,0.00021285,2]
[399865978,1766773838249,-300.0,0.00021499,2]
[399865979,1766773838259,-300.0,0.00021499,2]
[399865980,1766773838270,-1200.0,0.00021499,2]
[399865981,1766773838282,-2031.46938277,0.000215,2]
[399865982,1766773838293,-302.0,0.000215,2]
[399865983,1766773838303,-940.6161132,0.00021829,2]
[399865984,1766773838315,-500.0,0.00021856,7]
[399865985,1766773838325,-181.0801015,0.00021915,2]
[399865986,1766773838335,-151.0,0.00021915,2]
[399865987,1766773838346,-478.75725327,0.00021915,2]
[399865988,1766773838356,-151.0,0.00021915,2]
[399865989,1766773838366,-168.3888056,0.00021915,2]
[399865990,1766773838376,-2230.315306,0.00021915,2]
[399865991,1766773838386,-500.0,0.00021925,2]
[399865992,1766773838396,-500.0,0.00021925,2]
[399865993,1766773838406,-500.0,0.00021925,2]
[399865994,1766773838416,-500.0,0.00021925,2]
[399865995,1766773838426,-500.0,0.00021925,2]
[399865996,1766773838435,-500.0,0.00021925,2]
[399865997,1766773838449,-500.0,0.00021925,2]
[399865998,1766773838459,-500.0,0.00021925,2]
[399865999,1766773838469,-500.0,0.00021925,2]
[399866000,1766773838480,-500.0,0.00021925,2]
[399866001,1766773838490,-500.0,0.00021925,2]
[399866002,1766773838500,-500.0,0.00021925,2]
[399866003,1766773838510,-507.78338912,0.00021925,2]
[399866004,1766773838520,-500.0,0.00021925,2]
[399866005,1766773838530,-500.0,0.00021925,2]
[399866006,1766773838540,-500.0,0.00021925,2]
[399866007,1766773838550,-500.0,0.00021925,2]
[399866008,1766773838561,-500.0,0.00021925,2]
[399866009,1766773838571,-500.0,0.00021925,2]
[399866010,1766773838581,-376.26059807,0.00021925,2]
[399866011,1766773839067,-123.73940193,0.00021925,2]
[399866012,1766773839077,-165.14473427,0.00021925,2]
[399866013,1766773839086,-239.9596929,0.00021925,2]
[399866014,1766773839104,-260.0403071,0.00021925,2]
[399866015,1766773839114,-500.0,0.00021925,2]
[399866016,1766773839123,-134.57172466,0.00021925,2]
[399866017,1766773839135,-365.42827534,0.00021925,2]
[399866018,1766773839145,-500.0,0.00021925,2]
[399866019,1766773839155,-500.0,0.00021925,2]
[399866020,1766773839165,-500.0,0.00021925,2]
[399866021,1766773839174,-500.0,0.00021925,2]
[399866022,1766773839184,-500.0,0.00021925,2]
[399866023,1766773839193,-500.0,0.00021925,2]
[399866024,1766773839203,-274.65785929,0.00021925,2]
[399866025,1766773839215,-355.03161013,0.00021925,2]
[399866026,1766773839225,-500.0,0.00021925,2]
[399866027,1766773839235,-344.92935371,0.00021925,2]
[399866028,1766773839246,-500.0,0.00021925,2]
[399866029,1766773839255,-500.0,0.00021925,2]
[399866030,1766773839265,-500.0,0.00021925,2]
[399866031,1766773839279,-250.52073337,0.00021925,2]
[399866032,1766773839289,-500.0,0.00021925,2]
[399866033,1766773839299,-500.0,0.00021925,2]
[399866034,1766773839309,-500.0,0.00021925,2]
[399866035,1766773839321,-500.0,0.00021925,2]
[399866036,1766773839331,-500.0,0.00021925,2]
[399866037,1766773839341,-500.0,0.00021925,2]
[399866038,1766773839351,-500.0,0.00021925,2]
[399866039,1766773839361,-500.0,0.00021925,2]
[399866040,1766773839371,-500.0,0.00021925,2]
[399866041,1766773839382,-500.0,0.00021925,2]
[399866042,1766773839393,-500.0,0.00021925,2]
[399866043,1766773839403,-500.0,0.00021925,2]
[399866044,1766773839412,-500.0,0.00021925,2]
[399866045,1766773839422,-500.0,0.00021925,2]
[399866046,1766773839431,-500.0,0.00021925,2]
[399866047,1766773839441,-500.0,0.00021925,2]
[399866048,1766773839451,-500.0,0.00021925,2]
[399866049,1766773839461,-500.0,0.00021925,2]
[399866050,1766773839471,-500.0,0.00021925,2]
[399866051,1766773839482,-500.0,0.00021925,2]
[399866052,1766773839492,-500.0,0.00021925,2]
[399866053,1766773839502,-25739.15493587,0.00021927,2]
[399866081,1766773845871,-374.78095398,0.0002171,2]
[399866083,1766773846390,-4625.21904602,0.0002171,2]
[399866084,1766773846400,-300.0,0.00021929,10]
[399866085,1766773846410,-300.0,0.00021929,10]
[399866086,1766773846419,-300.0,0.00021929,10]
[399866087,1766773846429,-300.0,0.00021929,10]
[399866088,1766773846438,-274.11082833,0.00021929,10]
[399866089,1766773883624,200.0,0.00016124,2]
[399866090,1766773918484,150.0,0.00012787,2]
[399866091,1766773918904,150.0,0.0001395,2]
[399866092,1766773982829,150.0,0.00013549,2]
[399866093,1766773986459,-150.0,0.00014781,2]
[399866109,1766774385527,401.961179,0.00013699,2]
[399866116,1766774946150,-5000.0,0.00019257,2]
[399866117,1766774946174,-275.44924317,0.0001955,2]
[399866118,1766774946196,-715.0,0.00019648,2]
[399866119,1766774946217,-416.0,0.00019648,2]
[399866120,1766774946238,-255.75975292,0.0002,2]
[399866121,1766774946260,-999.0,0.0002014,2]
[399866122,1766774946281,-114.74149059,0.00020187,2]
[399866161,1766775032585,-427.395,0.00019986,2]
[399866162,1766775032597,-280.32,0.00019986,2]
[399866163,1766775032610,-4292.285,0.00019986,2]
[399866164,1766775032624,-287.21968841,0.00020187,2]
[399866165,1766775032634,-627.0774088,0.00020726,2]
[399866166,1766775032644,-4653.81281188,0.00020796,2]
[399866167,1766775032655,-300.0,0.00020824,2]
[399866168,1766775032665,-513.98430603,0.00020825,2]
[399866169,1766775032675,-338.82636242,0.00020825,2]
[399866170,1766775032686,-513.98430603,0.00020825,2]
[399866171,1766775032696,-513.98430603,0.00020825,2]
[399866172,1766775032706,-513.98430603,0.00020825,2]
[399866173,1766775032716,-513.98430603,0.00020825,2]
[399866174,1766775032726,-513.98430603,0.00020825,2]
[399866175,1766775032735,-513.98430603,0.00020825,2]
[399866176,1766775032745,-513.98430603,0.00020825,2]
[399866177,1766775032957,-513.98430603,0.00020825,2]
[399866178,1766775032975,-513.98430603,0.00020825,2]
[399866179,1766775032986,-513.98430603,0.00020825,2]
[399866180,1766775032996,-513.98430603,0.00020825,2]
[399866181,1766775033006,-3044.49104229,0.00020826,2]
[399866182,1766775033020,-1125.97591378,0.00020826,2]
[399866183,1766775033031,-2177.89216173,0.00020826,2]
[399866184,1766775033043,-5220.31562736,0.00020826,2]
[399866214,1766775038334,-1240.50164592,0.00020617,2]
[399866216,1766775038346,-513.98430603,0.00020825,2]
[399866218,1766775038356,-513.98430603,0.00020825,2]
[399866220,1766775038367,-513.98430603,0.00020825,2]
[399866222,1766775038377,-286.42112545,0.00020825,2]
[399866224,1766775038390,-213.57887455,0.00020825,2]
[399866226,1766775038399,-299.44685272,0.00020825,2]
[399866228,1766775038412,-200.55314728,0.00020825,2]
[399866230,1766775038421,-337.95360002,0.00020825,2]
[399866233,1766775038433,-287.20380679,0.00020825,2]
[399866235,1766775038444,-500.0,0.00020825,2]
[399866237,1766775038454,-487.23618802,0.00020825,2]
[399866238,1766775038466,-142.24791567,0.00020825,2]
[399866240,1766775038476,-205.52943696,0.00020825,2]
[399866242,1766775038487,-513.98430603,0.00020825,2]
[399866244,1766775038497,-500.0,0.00020825,2]
[399866245,1766775038506,-500.0,0.00020825,2]
[399866246,1766775038516,-500.0,0.00020825,2]
[399866247,1766775038526,-223.84770184,0.00020825,2]
[399866248,1766775038535,-500.0,0.00020825,2]
[399866249,1766775038544,-513.98430603,0.00020825,2]
[399866250,1766775038553,-500.0,0.00020825,2]
[399866251,1766775038563,-500.0,0.00020825,2]
[399866252,1766775038572,-513.98430603,0.00020825,2]
[399866253,1766775038582,-513.98430603,0.00020825,2]
[399866254,1766775038591,-23119.98418034,0.00020826,2]
[399866255,1766775038601,-162.92173802,0.00020827,2]
[399866256,1766775038610,-4517.81294053,0.000209,2]
[399866282,1766775040569,-4536.78168957,0.000209,2]
[399866283,1766775040578,-1000.0,0.00020927,2]
[399866284,1766775040588,-168.0966343,0.00021262,2]
[399866285,1766775040599,-478.75725327,0.00021262,2]
[399866286,1766775040608,-325.03010694,0.0002155,2]
[399866287,1766775040619,-2422.93431592,0.0002155,2]
[399866505,1766775046459,-337.2,0.0002155,2]
[399866506,1766775046521,-7546.91308738,0.0002155,2]
[399866507,1766775046543,-1041.66666667,0.000216,2]
[399866508,1766775046553,-472.71088892,0.00021826,2]
[399866509,1766775046563,-363.71917208,0.00021856,7]
[399866510,1766775046620,-136.28082792,0.00021856,7]
[399866511,1766775046630,-21.30074717,0.00021884,2]
[399866512,1766775197595,150.0,0.00013137,2]
[399866513,1766775197967,150.0,0.00014331,2]
[399866528,1766775471453,196.44091304,0.00028524,120]
[399866533,1766776146145,-5000.0,0.00018684,2]
[399866534,1766776146173,-280.24965988,0.00019017,2]
[399866535,1766776146198,-708.0,0.00019257,2]
[399866536,1766776146223,-300.0,0.0001954,2]
[399866537,1766776146249,-153.54031506,0.00019541,2]
[399866538,1766776146276,-4804.26415021,0.00019541,2]
[399866539,1766776146306,-418.05160588,0.00019541,2]
[399866540,1766776146334,-899.96062914,0.00019547,2]
[399866547,1766776232400,-437.315,0.00019352,2]
[399866549,1766776232413,-4562.685,0.00019352,2]
[399866551,1766776232424,-350.68153226,0.00019638,2]
[399866553,1766776232435,-504.99884366,0.00019638,2]
[399866555,1766776232445,-504.99884366,0.00019638,2]
[399866557,1766776232455,-504.99884366,0.00019638,2]
[399866560,1766776232465,-198.31539179,0.00019638,2]
[399866561,1766776232476,-504.99884366,0.00019638,2]
[399866563,1766776232486,-504.99884366,0.00019638,2]
[399866565,1766776232496,-300.0,0.00019638,2]
[399866567,1766776232506,-300.0,0.00019638,2]
[399866569,1766776232516,-156.63906555,0.00019638,2]
[399866571,1766776232525,-403.27601152,0.00019638,2]
[399866573,1766776232535,-50000.0,0.00019639,2]
[399866575,1766776232544,-300.0,0.00019641,2]
[399866577,1766776232554,-300.0,0.00019641,2]
[399866579,1766776232564,-300.0,0.00019641,2]
[399866581,1766776232574,-300.0,0.00019641,2]
[399866583,1766776232583,-300.0,0.00019641,2]
[399866585,1766776232593,-300.0,0.00019641,2]
[399866587,1766776232603,-300.0,0.00019641,2]
[399866589,1766776232613,-300.0,0.00019641,2]
[399866591,1766776232623,-300.0,0.00019641,2]
[399866593,1766776232632,-300.0,0.00019641,2]
[399866595,1766776232642,-300.0,0.00019641,2]
[399866597,1766776232652,-300.0,0.00019641,2]
[399866598,1766776232662,-300.0,0.00019641,2]
[399866601,1766776232673,-300.0,0.00019641,2]
[399866602,1766776232683,-300.0,0.00019641,2]
[399866604,1766776232693,-3774.50392172,0.0002,5]
[399866607,1766776232703,-600.0,0.00020033,2]
[399866608,1766776232714,-1041.66666667,0.00020281,2]
[399866610,1766776232724,-418.05160586,0.00020658,2]
[399866612,1766776232734,-413.10977112,0.00020829,2]
[399866614,1766776232744,-224.5784252,0.00020829,2]
[399866616,1766776232754,-350.55288559,0.00020829,2]
[399866618,1766776232763,-4798.024506,0.00020969,2]
[399866620,1766776232773,-451.8144825,0.00020969,2]
[399866622,1766776232782,-1341.4640411,0.00020969,2]
[399866624,1766776232792,-165.394674,0.00020969,2]
[399866626,1766776232801,-165.394674,0.00020969,2]
[399866628,1766776232810,-165.394674,0.00020969,2]
[399866630,1766776232820,-165.394674,0.00020969,2]
[399866632,1766776232829,-330.69459866,0.00021017,2]
[399866634,1766776232839,-228.36851718,0.00021145,2]
[399866636,1766776232848,-420.0,0.00021391,2]